[Event "26th OIBM 2023"]
[Site "Gmund am Tegernsee"]
[Date "2023.11.01"]
[Round "5.2"]
[White "Vogel, Roven"]
[Black "Morawietz, Dieter"]
[Result "1-0"]
[ECO "E94"]
[WhiteElo "2471"]
[BlackElo "2378"]
[Annotator "ChessBase"]
[PlyCount "91"]
[EventDate "2023.10.04"]
[EventType "swiss"]
[EventCountry "GER"]
[SourceTitle "playchess.com"]
[Source "ChessBase"]
[SourceQuality "1"]
[TimeControl "40/5400+30:1800+30"]

1. Nf3 {[%emt 0:00:04]} Nf6 {[%emt 0:01:22]} 2. c4 {[%emt 0:00:16]} g6 {[%emt 0:00:22]} 3. Nc3 {[%emt 0:00:07]} Bg7 {[%emt 0:00:09]} 4. d4 {[%emt 0:00:22]} O-O {[%emt 0:00:10]} 5. e4 {[%emt 0:00:05]} d6 {[%emt 0:00:09]} 6. Be2 {[%emt 0:00:06]} e5 {[%emt 0:00:09]} 7. O-O {[%emt 0:00:06]} Nbd7 {[%emt 0:00:05]} 8. Be3 {[%emt 0:00:07]} Ng4 {[%emt 0:00:44]} 9. Bg5 {[%emt 0:00:18]} f6 {[%emt 0:00:09]} 10. Bh4 {[%emt 0:03:28]} c6 {[%emt 0:01:45]} 11. h3 {[%emt 0:03:00]} Nh6 {[%emt 0:00:06]} 12. dxe5 {[%emt 0:04:40]} dxe5 {[%emt 0:07:22]} 13. b4 {[%emt 0:00:30]} Qe7 {[%emt 0:09:19]} 14. c5 {[%emt 0:03:28]} Rd8 {[%emt 0:06:22]} 15. Qb3+ {[%emt 0:02:00]} Kh8 {[%emt 0:05:04]} 16. Rad1 {[%emt 0:00:28]} Nf8 {[%emt 0:05:07]} 17. Rxd8 {[%emt 0:02:13]} Qxd8 {[%emt 0:00:50]} 18. Bc4 {[%emt 0:04:52]} Qe8 {[%emt 0:03:07]} 19. Rd1 {[%emt 0:02:46]} g5 {[%emt 0:08:31]} 20. Bg3 {[%emt 0:00:19]} g4 {[%emt 0:00:34]} 21. hxg4 {[%emt 0:00:51]} Bxg4 {[%emt 0:00:06]} 22. Rd6 {[%emt 0:03:40]} Bxf3 {[%emt 0:11:59]} 23. gxf3 {[%emt 0:01:54]} a6 {[%emt 0:08:01]} 24. f4 {[%emt 0:09:51]} exf4 {[%emt 0:00:16]} 25. Bxf4 {[%emt 0:00:05]} Qg6+ {[%emt 0:03:12]} 26. Bg3 {[%emt 0:00:43]} Qg5 {[%emt 0:00:05]} 27. Ne2 {[%emt 0:04:48]} Re8 {[%emt 0:00:45]} 28. Qd3 {[%emt 0:05:48]} Ng4 {[%emt 0:09:02]} 29. Bf7 {[%emt 0:06:33]} Re7 {[%emt 0:12:57]} 30. f4 {[%emt 0:01:40]} Qh6 {[%emt 0:00:02]} 31. Bb3 {[%emt 0:00:08]} Qg6 {[%emt 0:00:24]} 32. Bc2 {[%emt 0:08:48]} h5 {[%emt 0:00:36]} 33. Nd4 {[%emt 0:01:55]} h4 {[%emt 0:01:01]} 34. Nf5 {[%emt 0:00:58]} Ne3 {[%emt 0:01:59]} 35. Qxe3 {[%emt 0:00:24]} Qxf5 {[%emt 0:00:04]} 36. Bxh4 {[%emt 0:01:11]} Qh5 {[%emt 0:01:51]} 37. Qg3 {[%emt 0:04:01]} Re8 {[%emt 0:01:26]} 38. Bxf6 {[%emt 0:01:22]} Bxf6 {[%emt 0:00:38]} 39. Rxf6 {[%emt 0:00:22]} Ne6 {[%emt 0:00:34]} 40. Rf5 {[%emt 0:05:00]} Qh6 {[%emt 0:02:13]} 41. Qc3+ {[%emt 0:30:28]} Kh7 {[%emt 0:31:37]} 42. Rf7+ {[%emt 0:02:44]} Kg8 {[%emt 0:00:00]} 43. Rf6 {[%emt 0:00:00]} Qg7+ {[%emt 0:00:00]} 44. Kf2 {[%emt 0:00:00]} a5 {[%emt 0:00:00]} 45. Bb3 {[%emt 0:00:00]} axb4 {[%emt 0:00:00]} 46. Qe5 {[%emt 0:00:00]} 1-0

[Event "26th OIBM 2023"]
[Site "Gmund am Tegernsee"]
[Date "2023.11.01"]
[Round "5.3"]
[White "Kraus, Sebastian"]
[Black "Schneider, Ilja"]
[Result "0-1"]
[ECO "C54"]
[WhiteElo "1904"]
[BlackElo "2468"]
[Annotator "ChessBase"]
[PlyCount "54"]
[EventDate "2023.10.04"]
[EventType "swiss"]
[EventCountry "GER"]
[SourceTitle "playchess.com"]
[Source "ChessBase"]
[SourceQuality "1"]
[TimeControl "40/5400+30:1800+30"]

1. e4 {[%emt 0:00:03]} e5 {[%emt 0:00:28]} 2. Nf3 {[%emt 0:00:54]} Nc6 {[%emt 0:00:20]} 3. Bc4 {[%emt 0:01:02]} Bc5 {[%emt 0:00:20]} 4. d3 {[%emt 0:01:02]} Nf6 {[%emt 0:00:16]} 5. c3 {[%emt 0:04:31]} O-O {[%emt 0:01:41]} 6. O-O {[%emt 0:01:22]} d6 {[%emt 0:03:30]} 7. Bg5 {[%emt 0:01:09]} a6 {[%emt 0:06:35]} 8. Bb3 {[%emt 0:01:03]} Ba7 {[%emt 0:02:10]} 9. Nbd2 {[%emt 0:00:43]} h6 {[%emt 0:14:58]} 10. Bh4 {[%emt 0:01:34]} g5 {[%emt 0:04:40]} 11. Bg3 {[%emt 0:03:51]} Kg7 {[%emt 0:05:05]} 12. Nc4 {[%emt 0:05:20]} Ne7 {[%emt 0:05:46]} 13. Ne3 {[%emt 0:04:21]} Ng6 {[%emt 0:10:46]} 14. Bc2 {[%emt 0:03:25]} h5 {[%emt 0:10:31]} 15. h4 {[%emt 0:13:32]} Ng4 {[%emt 0:01:59]} 16. d4 {[%emt 0:08:39]} gxh4 {[%emt 0:02:12]} 17. Bh2 {[%emt 0:00:36]} h3 {[%emt 0:01:51]} 18. Qd2 {[%emt 0:05:22]} hxg2 {[%emt 0:03:13]} 19. Nxg2 {[%emt 0:00:31]} Qf6 {[%emt 0:01:19]} 20. Ng5 {[%emt 0:00:54]} exd4 {[%emt 0:02:35]} 21. Nf4 {[%emt 0:04:52]} dxc3 {[%emt 0:06:33]} 22. Nxh5+ {[%emt 0:01:23]} Kh6 {[%emt 0:00:45]} 23. Nxf6 {[%emt 0:03:46]} cxd2 {[%emt 0:00:09]} 24. Ngh7 {[%emt 0:00:45]} Nxh2 {[%emt 0:03:06]} 25. Kxh2 {[%emt 0:01:37]} Rh8 {[%emt 0:00:10]} 26. Rad1 {[%emt 0:00:45]} Bd4 {[%emt 0:01:04]} 27. Kg3 {[%emt 0:00:58]} Kg7 {[%emt 0:01:23]} 0-1

[Event "26th OIBM 2023"]
[Site "Gmund am Tegernsee"]
[Date "2023.11.01"]
[Round "5.4"]
[White "Kargin, Arseny"]
[Black "Gopal G.N."]
[Result "0-1"]
[ECO "B90"]
[WhiteElo "2391"]
[BlackElo "2573"]
[Annotator "TA"]
[PlyCount "58"]
[EventDate "2023.10.04"]
[EventType "swiss"]
[EventCountry "GER"]
[SourceTitle "playchess.com"]
[Source "ChessBase"]
[SourceQuality "1"]
[TimeControl "40/5400+30:1800+30"]

{[%evp 20,58,24,22,20,0,0,0,0,0,0,0,1,0,7,0,0,-7,0,0,0,0,0,-25,-13,-188,-202,-218,-202,-263,-253,-349,-354,-339,-341,-588,-591,-973,-981,-1066,-1046]} 1. e4 {[%emt 0:03:31]} c5 {[%emt 0:00:34]} 2. Nf3 {[%emt 0:00:08]} d6 {[%emt 0:00:05]} 3. d4 {[%emt 0:00:04]} cxd4 {[%emt 0:00:04]} 4. Nxd4 {[%emt 0:00:05]} Nf6 {[%emt 0:00:04]} 5. Nc3 {[%emt 0:00:36]} a6 {[%emt 0:00:07]} 6. Be3 {[%emt 0:00:40]} e5 {[%emt 0:00:21]} 7. Nb3 {[%emt 0:00:45]} Be7 {[%emt 0:04:26]} 8. f3 {[%emt 0:01:05]} Be6 {[%emt 0:00:22]} 9. Qd2 {[%emt 0:00:26]} h5 {[%emt 0:01:16]} 10. Nd5 {[%emt 0:06:57]} Nxd5 {[%emt 0:01:59]} 11. exd5 {[%emt 0:00:09]} Bf5 {[%emt 0:00:03] B90: Sicilian Najdorf: Unusual White 6th moves, 6 Be3 Ng4 and 6 Be3 e5.} 12. O-O-O {[%emt 0:07:41]} Nd7 {[%emt 0:01:14]} 13. Kb1 {[%emt 0:01:01]} Rc8 {[%emt 0:01:36] The position is equal.} 14. Bd3 {[%emt 0:00:29]} Bxd3 {[%emt 0:01:09]} 15. Qxd3 {[%emt 0:00:05]} Bg5 {[%emt 0:01:44]} 16. Bf2 {[%emt 0:08:27]} Qc7 {[%emt 0:06:59]} 17. h4 {[%emt 0:00:57]} Bh6 {[%emt 0:01:29]} 18. Rhe1 {[%emt 0:09:21]} O-O {[%emt 0:23:10]} 19. g4 {[%emt 0:03:21]} hxg4 {[%emt 0:03:23]} 20. fxg4 {[%emt 0:02:33] [#] g5 is the strong threat.} Bf4 {[%emt 0:00:06] [#]} 21. h5 $146 {[%emt 0:16:16]} ({Predecessor:} 21. c3 Qc4 22. Qf3 b5 23. Na5 Qc7 24. Nc6 Nb8 25. Nb4 a5 26. Nd3 b4 27. Nxf4 bxc3 28. Qxc3 Qxc3 29. bxc3 exf4 {1-0 Nurmamedov,A (2382)-Jaiswal,R (2135) Asian Continental op 19th 2022 (6)}) 21... Nf6 {[%emt 0:15:57][%cal Bd7f6,Bf6g4,Bg4e3,Be3d1][%mdl 32]} 22. c3 $2 {[%emt 0:18:59] Loses the game.} (22. Qf5 $11) 22... Nxg4 $19 {[%emt 0:05:59]} 23. Qf3 {[%emt 0:00:24]} f5 {[%emt 0:02:17]} 24. Nd2 {[%emt 0:06:00]} Qf7 {[%emt 0:03:48]} 25. Rh1 {[%emt 0:05:54]} Bh6 {[%emt 0:00:24]} (25... Nxf2 $2 26. Qxf2 Qxd5 27. Ka1 $19) 26. Bh4 {[%emt 0:00:50]} e4 {[%emt 0:09:45]} ({Weaker is} 26... Qxh5 27. Be7 Qg6 28. Bxf8 Rxf8 29. Rhg1 $17) 27. Qg3 {[%emt 0:00:21]} (27. Qe2 {was worth a try.}) 27... Ne3 {[%emt 0:04:35] Black is clearly winning.} ({Not} 27... Qxh5 28. Qxd6 (28. Be7 $2 f4 $19) 28... Qf7 29. Nb3 $19) (27... Qxd5 $2 {perishes.} 28. Nf3 Qc4 29. Nd4 $19) 28. Qxd6 {[%emt 0:03:53]} Nxd1 {[%emt 0:00:53][%mdl 64] [#] Discovered Attack} 29. Rxd1 {[%emt 0:00:01]} Qxh5 {[%emt 0:01:29] Weighted Error Value: White=0.85/Black=0.01 (flawless)} 0-1

[Event "26th OIBM 2023"]
[Site "Gmund am Tegernsee"]
[Date "2023.11.01"]
[Round "5.5"]
[White "Colpe, Malte"]
[Black "Mastrovasilis, Dimitrios"]
[Result "1/2-1/2"]
[ECO "D02"]
[WhiteElo "2386"]
[BlackElo "2573"]
[Annotator "TA"]
[PlyCount "26"]
[EventDate "2023.10.04"]
[EventType "swiss"]
[EventCountry "GER"]
[SourceTitle "playchess.com"]
[Source "ChessBase"]
[SourceQuality "1"]
[TimeControl "40/5400+30:1800+30"]

{[%evp 9,26,27,34,29,31,35,53,31,35,12,37,34,48,43,45,46,53,22,20]} 1. d4 {[%emt 0:00:04]} d5 {[%emt 0:04:53]} 2. Nf3 {[%emt 0:00:09]} e6 {[%emt 0:00:28]} 3. Bf4 {[%emt 0:02:00]} Bd6 {[%emt 0:00:18]} 4. e3 {[%emt 0:00:39]} Ne7 {[%emt 0:04:07]} 5. Bxd6 {[%emt 0:14:16]} Qxd6 {[%emt 0:00:41]} 6. c4 {[%emt 0:02:48] [#] D02: 1 d4 d5 2 Nf3 sidelines, including 2...Nf6 3 g3 and 2...Nf6 3 Bf4.} b6 $146 {[%emt 0:12:55]} ({Predecessor:} 6... dxc4 7. Bxc4 Qb4+ 8. Nbd2 Qxb2 9. Rb1 Qa3 10. Qc2 Nbc6 11. Bb5 O-O 12. Nc4 Nb4 13. Nxa3 Nxc2+ 14. Nxc2 {1-0 Tomasa,I-Rieger,E ICCF FM/3144 email 2018}) 7. Nc3 {[%emt 0:02:21]} Bb7 {[%emt 0:01:18]} 8. Qa4+ {[%emt 0:08:28] White is slightly better.} (8. Rc1 $5 {[%cal Rc3b5]}) 8... c6 {[%emt 0:06:36]} 9. cxd5 {[%emt 0:05:18]} exd5 {[%emt 0:06:00]} 10. Bd3 {[%emt 0:02:32]} Nd7 {[%emt 0:01:22]} 11. O-O {[%emt 0:01:36]} O-O {[%emt 0:03:04]} 12. Rfe1 {[%emt 0:13:40]} Ng6 {[%emt 0:12:56]} 13. Ba6 {[%emt 0:05:01]} Bxa6 {[%emt 0:08:40] Weighted Error Value: White=0.10 (very precise) /Black=0.07 (flawless)} 1/2-1/2

[Event "26th OIBM 2023"]
[Site "Gmund am Tegernsee"]
[Date "2023.11.01"]
[Round "5.6"]
[White "Kulaots, Kaido"]
[Black "Hess, Max"]
[Result "1/2-1/2"]
[ECO "B12"]
[WhiteElo "2508"]
[BlackElo "2378"]
[Annotator "ChessBase"]
[PlyCount "81"]
[EventDate "2023.10.04"]
[EventType "swiss"]
[EventCountry "GER"]
[SourceTitle "playchess.com"]
[Source "ChessBase"]
[SourceQuality "1"]
[TimeControl "40/5400+30:1800+30"]

1. e4 {[%emt 0:00:04]} c6 {[%emt 0:00:04]} 2. d4 {[%emt 0:00:15]} d5 {[%emt 0:00:06]} 3. e5 {[%emt 0:00:04]} Bf5 {[%emt 0:00:12]} 4. h4 {[%emt 0:00:41]} h5 {[%emt 0:00:15]} 5. Bd3 {[%emt 0:00:24]} Bxd3 {[%emt 0:00:10]} 6. Qxd3 {[%emt 0:00:05]} Qa5+ {[%emt 0:00:09]} 7. Nd2 {[%emt 0:01:32]} e6 {[%emt 0:00:05]} 8. Ngf3 {[%emt 0:02:11]} Nh6 {[%emt 0:00:51]} 9. O-O {[%emt 0:00:52]} Nf5 {[%emt 0:00:06]} 10. Nb3 {[%emt 0:02:21]} Qb5 {[%emt 0:03:50]} 11. Qd1 {[%emt 0:02:28]} c5 {[%emt 0:00:09]} 12. a4 {[%emt 0:10:50]} Qb6 {[%emt 0:00:21]} 13. dxc5 {[%emt 0:02:03]} Bxc5 {[%emt 0:00:13]} 14. Bg5 {[%emt 0:03:31]} Nd7 {[%emt 0:04:23]} 15. c3 {[%emt 0:06:58]} a5 {[%emt 0:13:49]} 16. Rc1 {[%emt 0:23:28]} Rc8 {[%emt 0:17:16]} 17. c4 {[%emt 0:03:47]} d4 {[%emt 0:06:00]} 18. Qd3 {[%emt 0:00:45]} Nb8 {[%emt 0:04:46]} 19. Rfe1 {[%emt 0:12:43]} Nc6 {[%emt 0:00:14]} 20. Nfd2 {[%emt 0:05:48]} O-O {[%emt 0:24:55]} 21. Qf3 {[%emt 0:05:06]} d3 {[%emt 0:01:33]} 22. Nxc5 {[%emt 0:07:37]} Qxc5 {[%emt 0:02:21]} 23. Qxd3 {[%emt 0:00:04]} Nxe5 {[%emt 0:00:54]} 24. Qe2 {[%emt 0:05:26]} Ng4 {[%emt 0:00:06]} 25. Nf3 {[%emt 0:00:36]} Rfe8 {[%emt 0:03:19]} 26. Nh2 {[%emt 0:00:53]} Nxh2 {[%emt 0:09:33]} 27. Kxh2 {[%emt 0:00:02]} f6 {[%emt 0:00:06]} 28. Be3 {[%emt 0:00:15]} Nxe3 {[%emt 0:02:56]} 29. Qxe3 {[%emt 0:00:16]} Qxe3 {[%emt 0:00:08]} 30. Rxe3 {[%emt 0:00:06]} e5 {[%emt 0:00:14]} 31. Rb3 {[%emt 0:00:30]} Rc7 {[%emt 0:01:40]} 32. Rb5 {[%emt 0:00:15]} Rd8 {[%emt 0:00:07]} 33. b3 {[%emt 0:01:24]} Rd2 {[%emt 0:00:45]} 34. Kg1 {[%emt 0:03:25]} Rcd7 {[%emt 0:01:51]} 35. Rxa5 {[%emt 0:00:13]} Rb2 {[%emt 0:00:27]} 36. Rd5 {[%emt 0:00:45]} Rxd5 {[%emt 0:00:57]} 37. cxd5 {[%emt 0:00:02]} Rxb3 {[%emt 0:00:18]} 38. g3 {[%emt 0:00:58]} Rd3 {[%emt 0:00:38]} 39. Rc5 {[%emt 0:00:39]} b6 {[%emt 0:00:27]} 40. Rb5 {[%emt 0:00:22]} Rd4 {[%emt 0:00:31]} 41. Rxb6 {[%emt 0:30:07]} 1/2-1/2

[Event "26th OIBM 2023"]
[Site "Gmund am Tegernsee"]
[Date "2023.11.01"]
[Round "5.7"]
[White "Reimann, Sebastian"]
[Black "Vetoshko, Volodymyr"]
[Result "1/2-1/2"]
[ECO "B11"]
[WhiteElo "2342"]
[BlackElo "2499"]
[Annotator "ChessBase"]
[PlyCount "32"]
[EventDate "2023.10.04"]
[EventType "swiss"]
[EventCountry "GER"]
[SourceTitle "playchess.com"]
[Source "ChessBase"]
[SourceQuality "1"]
[TimeControl "40/5400+30:1800+30"]

1. e4 {[%emt 0:00:03]} c6 {[%emt 0:00:13]} 2. Nc3 {[%emt 0:00:34]} d5 {[%emt 0:00:10]} 3. Nf3 {[%emt 0:00:08]} dxe4 {[%emt 0:00:34]} 4. Nxe4 {[%emt 0:00:11]} Nf6 {[%emt 0:00:36]} 5. Qe2 {[%emt 0:00:30]} Na6 {[%emt 0:00:38]} 6. a3 {[%emt 0:07:07]} Nc7 {[%emt 0:01:09]} 7. d3 {[%emt 0:04:30]} Ne6 {[%emt 0:00:42]} 8. g3 {[%emt 0:02:33]} g6 {[%emt 0:00:06]} 9. Bg2 {[%emt 0:00:33]} Bg7 {[%emt 0:00:17]} 10. O-O {[%emt 0:00:11]} Nxe4 {[%emt 0:00:58]} 11. Qxe4 {[%emt 0:01:35]} O-O {[%emt 0:01:02]} 12. Re1 {[%emt 0:03:58]} a5 {[%emt 0:06:39]} 13. Rb1 {[%emt 0:06:30]} Re8 {[%emt 0:12:49]} 14. Bd2 {[%emt 0:15:00]} Nd4 {[%emt 0:14:44]} 15. Nxd4 {[%emt 0:01:55]} Bxd4 {[%emt 0:01:22]} 16. Bc3 {[%emt 0:04:33]} Bg7 {[%emt 0:11:24]} 1/2-1/2

[Event "26th OIBM 2023"]
[Site "Gmund am Tegernsee"]
[Date "2023.11.01"]
[Round "5.8"]
[White "Nguyen, Alex Dac-Vuong"]
[Black "Ghazarian, Kirk"]
[Result "1-0"]
[ECO "A40"]
[WhiteElo "2333"]
[BlackElo "2473"]
[Annotator "ChessBase"]
[PlyCount "97"]
[EventDate "2023.10.04"]
[EventType "swiss"]
[EventCountry "GER"]
[SourceTitle "playchess.com"]
[Source "ChessBase"]
[SourceQuality "1"]
[TimeControl "40/5400+30:1800+30"]

1. c4 {[%emt 0:00:03]} b6 {[%emt 0:00:14]} 2. d4 {[%emt 0:00:11]} e6 {[%emt 0:00:04]} 3. e4 {[%emt 0:00:54]} Bb4+ {[%emt 0:00:39]} 4. Nc3 {[%emt 0:02:38]} Bb7 {[%emt 0:00:24]} 5. f3 {[%emt 0:00:08]} Ne7 {[%emt 0:00:35]} 6. Nge2 {[%emt 0:00:36]} f5 {[%emt 0:01:36]} 7. a3 {[%emt 0:04:02]} Bxc3+ {[%emt 0:00:05]} 8. Nxc3 {[%emt 0:00:04]} fxe4 {[%emt 0:01:50]} 9. fxe4 {[%emt 0:00:10]} O-O {[%emt 0:00:06]} 10. Bg5 {[%emt 0:04:26]} Qe8 {[%emt 0:07:24]} 11. Be2 {[%emt 0:05:06]} Nbc6 {[%emt 0:02:58]} 12. d5 {[%emt 0:11:35]} exd5 {[%emt 0:05:55]} 13. cxd5 {[%emt 0:05:58]} Nd8 {[%emt 0:11:47]} 14. Nb5 {[%emt 0:11:14]} Ng6 {[%emt 0:00:57]} 15. Qd4 {[%emt 0:09:19]} Nf7 {[%emt 0:01:37]} 16. Be3 {[%emt 0:07:07]} Qd8 {[%emt 0:01:51]} 17. O-O {[%emt 0:01:43]} a6 {[%emt 0:02:15]} 18. Nc3 {[%emt 0:00:16]} d6 {[%emt 0:00:35]} 19. a4 {[%emt 0:06:21]} Qe7 {[%emt 0:01:39]} 20. a5 {[%emt 0:00:05]} b5 {[%emt 0:00:31]} 21. Rac1 {[%emt 0:02:10]} Nge5 {[%emt 0:01:50]} 22. Rc2 {[%emt 0:05:57]} Kh8 {[%emt 0:03:25]} 23. Rfc1 {[%emt 0:01:35]} c5 {[%emt 0:04:01]} 24. dxc6 {[%emt 0:00:04]} Nxc6 {[%emt 0:00:11]} 25. Qb6 {[%emt 0:00:46]} Nb4 {[%emt 0:01:07]} 26. Rd2 {[%emt 0:00:05]} Rab8 {[%emt 0:01:55]} 27. Bf4 {[%emt 0:03:59]} Ne5 {[%emt 0:08:13]} 28. Bg3 {[%emt 0:00:35]} Nbc6 {[%emt 0:03:51]} 29. Rcd1 {[%emt 0:01:03]} Bc8 {[%emt 0:10:02]} 30. Nd5 {[%emt 0:00:49]} Qe6 {[%emt 0:02:52]} 31. Qe3 {[%emt 0:02:03]} Nxa5 {[%emt 0:00:37]} 32. b3 {[%emt 0:03:00]} Bb7 {[%emt 0:14:17]} 33. Qc3 {[%emt 0:01:42]} Nec6 {[%emt 0:05:52]} 34. b4 {[%emt 0:03:17]} Nc4 {[%emt 0:00:43]} 35. Bxc4 {[%emt 0:00:04]} bxc4 {[%emt 0:00:05]} 36. Nb6 {[%emt 0:01:25]} Rbd8 {[%emt 0:05:11]} 37. Nxc4 {[%emt 0:06:40]} Qxe4 {[%emt 0:01:08]} 38. Nxd6 {[%emt 0:00:04]} Qe7 {[%emt 0:00:15]} 39. Re1 {[%emt 0:00:53]} Qd7 {[%emt 0:00:44]} 40. Bh4 {[%emt 0:01:37]} Rb8 {[%emt 0:00:28]} 41. Be7 {[%emt 0:14:34]} Qc7 {[%emt 0:00:29]} 42. Bxf8 {[%emt 0:00:06]} Rxf8 {[%emt 0:00:08]} 43. Re8 {[%emt 0:03:56]} Rxe8 {[%emt 0:02:07]} 44. Nxe8 {[%emt 0:00:12]} Qe7 {[%emt 0:00:02]} 45. Re2 {[%emt 0:01:09]} Qd7 {[%emt 0:00:32]} 46. Nxg7 {[%emt 0:01:00]} Kg8 {[%emt 0:02:50]} 47. Nh5 {[%emt 0:02:13]} Qd1+ {[%emt 0:00:40]} 48. Kf2 {[%emt 0:00:23]} Nd4 {[%emt 0:00:32]} 49. Qg3+ {[%emt 0:00:12]} 1-0

[Event "26th OIBM 2023"]
[Site "Gmund am Tegernsee"]
[Date "2023.11.01"]
[Round "5.9"]
[White "Golubka, Petro"]
[Black "Karsay, Pascal"]
[Result "1-0"]
[ECO "C78"]
[WhiteElo "2434"]
[BlackElo "2301"]
[Annotator "ChessBase"]
[PlyCount "67"]
[EventDate "2023.10.04"]
[EventType "swiss"]
[EventCountry "GER"]
[SourceTitle "playchess.com"]
[Source "ChessBase"]
[SourceQuality "1"]
[TimeControl "40/5400+30:1800+30"]

1. e4 {[%emt 0:09:35]} e5 {[%emt 0:00:14]} 2. Nf3 {[%emt 0:00:16]} Nc6 {[%emt 0:00:16]} 3. Bb5 {[%emt 0:00:46]} a6 {[%emt 0:00:15]} 4. Ba4 {[%emt 0:00:13]} Nf6 {[%emt 0:00:13]} 5. O-O {[%emt 0:00:14]} b5 {[%emt 0:00:25]} 6. Bb3 {[%emt 0:00:15]} Bc5 {[%emt 0:00:23]} 7. a4 {[%emt 0:02:35]} Bb7 {[%emt 0:01:06]} 8. d3 {[%emt 0:01:03]} O-O {[%emt 0:00:40]} 9. axb5 {[%emt 0:07:26]} axb5 {[%emt 0:00:11]} 10. Rxa8 {[%emt 0:00:11]} Bxa8 {[%emt 0:00:30]} 11. Na3 {[%emt 0:00:47]} Na5 {[%emt 0:08:31]} 12. Nxe5 {[%emt 0:15:48]} Nxb3 {[%emt 0:00:39]} 13. cxb3 {[%emt 0:00:07]} d5 {[%emt 0:13:53]} 14. Nxb5 {[%emt 0:08:06]} dxe4 {[%emt 0:08:52]} 15. d4 {[%emt 0:00:18]} Bb6 {[%emt 0:03:27]} 16. Nc4 {[%emt 0:03:49]} Nd5 {[%emt 0:00:42]} 17. Nc3 {[%emt 0:03:32]} f5 {[%emt 0:11:11]} 18. Nxd5 {[%emt 0:06:29]} Bxd5 {[%emt 0:04:06]} 19. Bf4 {[%emt 0:00:19]} Bxc4 {[%emt 0:06:04]} 20. bxc4 {[%emt 0:00:25]} Bxd4 {[%emt 0:03:36]} 21. b4 {[%emt 0:00:45]} c5 {[%emt 0:00:59]} 22. Qb3 {[%emt 0:09:06]} Qb6 {[%emt 0:17:54]} 23. b5 {[%emt 0:00:51]} h6 {[%emt 0:01:28]} 24. h4 {[%emt 0:02:17]} Kh7 {[%emt 0:00:59]} 25. Qg3 {[%emt 0:02:49]} Rf7 {[%emt 0:03:45]} 26. h5 {[%emt 0:00:30]} Ra7 {[%emt 0:03:51]} 27. Bb8 {[%emt 0:02:26]} Ra2 {[%emt 0:01:19]} 28. Be5 {[%emt 0:00:38]} g5 {[%emt 0:02:50]} 29. Bxd4 {[%emt 0:01:36]} cxd4 {[%emt 0:00:05]} 30. Qe5 {[%emt 0:00:10]} Re2 {[%emt 0:00:52]} 31. Qxf5+ {[%emt 0:00:43]} Kg7 {[%emt 0:00:05]} 32. Ra1 {[%emt 0:01:35]} e3 {[%emt 0:02:10]} 33. fxe3 {[%emt 0:00:40]} dxe3 {[%emt 0:00:33]} 34. c5 {[%emt 0:02:22]} 1-0

[Event "26th OIBM 2023"]
[Site "Gmund am Tegernsee"]
[Date "2023.11.01"]
[Round "5.10"]
[White "Weishaeutel, Moritz"]
[Black "Goldbeck, Lars"]
[Result "1-0"]
[ECO "B13"]
[WhiteElo "2403"]
[BlackElo "2272"]
[Annotator "ChessBase"]
[PlyCount "77"]
[EventDate "2023.10.04"]
[EventType "swiss"]
[EventCountry "GER"]
[SourceTitle "playchess.com"]
[Source "ChessBase"]
[SourceQuality "1"]
[TimeControl "40/5400+30:1800+30"]

1. e4 {[%emt 0:00:03]} c6 {[%emt 0:00:10]} 2. d4 {[%emt 0:00:04]} d5 {[%emt 0:00:03]} 3. exd5 {[%emt 0:00:05]} cxd5 {[%emt 0:00:03]} 4. c4 {[%emt 0:00:04]} Nf6 {[%emt 0:00:05]} 5. Nc3 {[%emt 0:00:04]} Nc6 {[%emt 0:00:04]} 6. Nf3 {[%emt 0:00:04]} Bg4 {[%emt 0:00:35]} 7. cxd5 {[%emt 0:00:05]} Nxd5 {[%emt 0:00:05]} 8. Qb3 {[%emt 0:00:03]} Bxf3 {[%emt 0:00:17]} 9. gxf3 {[%emt 0:00:04]} e6 {[%emt 0:01:04]} 10. Qxb7 {[%emt 0:00:04]} Nxd4 {[%emt 0:00:11]} 11. Bb5+ {[%emt 0:00:04]} Nxb5 {[%emt 0:00:05]} 12. Qc6+ {[%emt 0:00:03]} Ke7 {[%emt 0:00:06]} 13. Qc5+ {[%emt 0:00:03]} Nd6 {[%emt 0:00:44]} 14. Nxd5+ {[%emt 0:00:03]} Kd7 {[%emt 0:00:49]} 15. Nc3 {[%emt 0:00:09]} Qb6 {[%emt 0:00:17]} 16. Qh5 {[%emt 0:00:20]} Be7 {[%emt 0:07:02]} 17. O-O {[%emt 0:02:48]} Ke8 {[%emt 0:00:53]} 18. Rd1 {[%emt 0:06:36]} Nf5 {[%emt 0:05:02]} 19. Nd5 {[%emt 0:17:21]} Qb7 {[%emt 0:29:09]} 20. Nxe7 {[%emt 0:01:47]} Kxe7 {[%emt 0:02:29]} 21. b3 {[%emt 0:04:27]} Rhd8 {[%emt 0:03:13]} 22. Ba3+ {[%emt 0:03:37]} Kf6 {[%emt 0:00:04]} 23. Bb2+ {[%emt 0:05:27]} Ke7 {[%emt 0:49:30]} 24. Re1 {[%emt 0:04:51]} g6 {[%emt 0:00:00]} 25. Qg5+ {[%emt 0:01:27]} Ke8 {[%emt 0:00:00]} 26. Qf6 {[%emt 0:06:08]} Qe7 {[%emt 0:00:00]} 27. Qh8+ {[%emt 0:00:04]} Qf8 {[%emt 0:00:00]} 28. Qxh7 {[%emt 0:01:10]} Rd2 {[%emt 0:00:00]} 29. Bf6 {[%emt 0:01:52]} Rc8 {[%emt 0:00:00]} 30. Rac1 {[%emt 0:08:34]} Kd7 {[%emt 0:00:00]} 31. Rxc8 {[%emt 0:13:03]} Kxc8 {[%emt 0:00:00]} 32. Rc1+ {[%emt 0:00:05]} Kb7 {[%emt 0:00:00]} 33. Be5 {[%emt 0:00:04]} Nd4 {[%emt 0:00:00]} 34. Rc7+ {[%emt 0:01:42]} Kb6 {[%emt 0:00:00]} 35. Rxf7 {[%emt 0:00:28]} Nxf3+ {[%emt 0:00:00]} 36. Rxf3 {[%emt 0:00:47]} Qxf3 {[%emt 0:00:00]} 37. Qc7+ {[%emt 0:00:03]} Kb5 {[%emt 0:00:00]} 38. Qc4+ {[%emt 0:00:04]} Kb6 {[%emt 0:00:00]} 39. Qb4+ {[%emt 0:00:05]} 1-0